{"text_format":"1","workbook":"xlsx","n_sheets":3,"sheets":["Feuil1","Feuil2","Feuil3"],"not_rendered":{"charts":0,"images":0,"macros":0,"external_links":0,"defined_names":0,"comments":0,"pivot_tables":0},"unopened":[],"bounds":{"document_bytes":16777216,"sheet_cells":100000,"rows_first":2000,"rows_last":500,"rows_between":2000,"halvings":0,"cell_chars":16384,"cell_head_chars":4096},"cells_cut":0,"cells_raw":0,"read":"whole","date_system":"1900"}

{"sheet":"Feuil1","index":0,"n_rows":14,"n_cols":4,"rows_kept":14,"cut":false,"hidden":false,"merged":[]}
["ORIGINE","EDITION","nombre de caractères édités","nombre de caractères d'origine"]
["appartement 116 devient mais on ne sait pas trop",{"$f":"IF(LEN(A2)<=38,A2,MID(A2,1,FIND(\"/\",SUBSTITUTE(MID(A2,1,38),\" \",\"/\",LEN(MID(A2,1,38))-LEN(SUBSTITUTE(MID(A2,1,38),\" \",\"\"))),1)))","v":"appartement 116 devient mais on ne "},{"$f":"LEN(B2)","v":35},{"$f":"LEN(A2)","v":48}]
["Je suis le roi d'Espagne, j'aime",{"$f":"IF(LEN(A3)<=38,A3,MID(A3,1,FIND(\"/\",SUBSTITUTE(MID(A3,1,38),\" \",\"/\",LEN(MID(A3,1,38))-LEN(SUBSTITUTE(MID(A3,1,38),\" \",\"\"))),1)))","v":"Je suis le roi d'Espagne, j'aime"},{"$f":"LEN(B3)","v":32},{"$f":"LEN(A3)","v":32}]
["Quel est le chemin vers la vérité, avant de tomber","Quel est le chemin vers la vérité, ",35,50]
["Je suis le roi d'Espagne, j'aime les filles aux yeux d'or","Je suis le roi d'Espagne, j'aime les ",37,57]
["j'étais sur la route, je regardais devant","j'étais sur la route, je regardais ",35,41]
["Comment ça va ce matin, couci couca ou moins bien?","Comment ça va ce matin, couci couca ",36,50]
["Comment allez vous ce matin, couci couca ou moins bien?","Comment allez vous ce matin, couci ",35,55]
["je pense que ça devrait fonctionner mais je ne suis pas sur","je pense que ça devrait fonctionner ",36,59]
[null,0,1,0]
[null,0,1,0]
[null,0,1,0]
[null,{"$f":"IF(LEN(A11)<=38,A11,MID(A11,1,FIND(\"/\",SUBSTITUTE(MID(A11,1,38),\" \",\"/\",LEN(MID(A11,1,38))-LEN(SUBSTITUTE(MID(A11,1,38),\" \",\"\"))),1)))","v":0},{"$f":"LEN(B13)","v":1},{"$f":"LEN(A11)","v":0}]
[null,0,1,0]

{"sheet":"Feuil2","index":1,"n_rows":0,"n_cols":0,"rows_kept":0,"cut":false,"hidden":false,"merged":[]}

{"sheet":"Feuil3","index":2,"n_rows":0,"n_cols":0,"rows_kept":0,"cut":false,"hidden":false,"merged":[]}